bitfinex/quotes_BTCUSD_20251009
["timestamp","ask_amount","ask_price","bid_price","bid_amount"]
[1759977700326,1.15503131,121880.0,121870.0,0.00015118]
[1759977700543,0.92283131,121880.0,121870.0,0.00015118]
[1759977700750,1.26565496,121880.0,121870.0,0.00015118]
[1759977700951,1.26165496,121880.0,121870.0,0.00015118]
[1759977701367,1.26565496,121880.0,121870.0,0.00015118]
[1759977701682,1.60685032,121880.0,121870.0,0.00015118]
[1759977702345,1.52170719,121880.0,121870.0,0.00015118]
[1759977702558,0.982526,121880.0,121870.0,0.18067139]
[1759977702978,0.676416,121880.0,121870.0,0.00015118]
[1759977703255,1.18170719,121880.0,121870.0,0.00015118]
[1759977703741,0.676416,121880.0,121870.0,0.00015118]
[1759977703965,0.84051183,121880.0,121870.0,0.00015118]
[1759977704197,1.18170719,121880.0,121870.0,0.00015118]
[1759977704446,0.78541136,121880.0,121870.0,0.00015118]
[1759977704693,0.10302064,121880.0,121870.0,0.18067139]
[1759977704947,0.370836,121880.0,121870.0,0.1842515]
[1759977705173,0.370836,121880.0,121870.0,0.16784058]
[1759977705371,0.603036,121880.0,121870.0,0.16784058]
[1759977705730,0.370836,121880.0,121870.0,0.16784058]
[1759977705944,0.603036,121880.0,121870.0,0.16784058]
[1759977706331,0.02964064,121880.0,121870.0,0.16784058]
[1759977706557,0.370836,121880.0,121870.0,0.16784058]
[1759977707778,0.005,121880.0,121870.0,0.28111454]
[1759977709198,0.34619536,121880.0,121870.0,0.28111454]
[1759977709611,0.34619536,121880.0,121870.0,0.51339454]
[1759977710031,0.37171536,121880.0,121870.0,0.16784058]
[1759977710488,0.34619536,121880.0,121870.0,0.16784058]
[1759977710727,0.37171536,121880.0,121870.0,0.16784058]
[1759977710930,0.34619536,121880.0,121870.0,0.16784058]
[1759977711129,0.4124509,121880.0,121870.0,0.16784058]
[1759977711546,0.34619536,121880.0,121870.0,0.16784058]
[1759977711758,0.43015536,121880.0,121870.0,0.16784058]
[1759977712114,0.66251536,121880.0,121870.0,0.00373129]
[1759977712311,0.32132,121880.0,121870.0,0.00373129]
[1759977712521,0.61889487,121880.0,121870.0,0.00373129]
[1759977712732,0.85125487,121880.0,121870.0,0.00373129]
[1759977713967,0.68715904,121880.0,121870.0,0.00373129]
[1759977714171,1.0283544,121880.0,121870.0,0.00373129]
[1759977714342,1.19245023,121880.0,121870.0,0.00373129]
[1759977714687,0.45479904,121880.0,121870.0,0.16784058]
[1759977714897,0.02964368,121880.0,121870.0,0.1842515]
[1759977715041,0.60319904,121880.0,121870.0,0.16784058]
[1759977715263,0.62871904,121880.0,121870.0,0.16784058]
[1759977715465,0.64769904,121880.0,121870.0,0.16784058]
[1759977716966,0.07414368,121880.0,121870.0,0.16784058]
[1759977717171,0.64769904,121880.0,121870.0,0.16784058]
[1759977717924,0.41533904,121880.0,121870.0,0.16784058]
[1759977718392,0.64769904,121880.0,121870.0,0.16784058]
[1759977718932,0.07414368,121880.0,121870.0,0.16784058]
[1759977719136,0.005,121880.0,121870.0,0.16784058]
[1759977720532,0.34619536,121880.0,121870.0,0.40024058]
[1759977720889,0.09084369,121880.0,121870.0,0.40020058]
[1759977721087,0.45101905,121880.0,121870.0,0.16784058]
[1759977721291,0.10982369,121880.0,121870.0,0.16784058]
[1759977721501,0.93544655,121880.0,121870.0,0.00373129]
[1759977721707,1.16780655,121880.0,121870.0,0.00373129]
[1759977721908,1.19245092,121880.0,121870.0,0.00373129]
[1759977722722,0.34596437,121880.0,121870.0,0.00373129]
[1759977722934,0.79599509,121880.0,121870.0,0.16784058]
[1759977723141,0.68719973,121880.0,121870.0,0.16784058]
[1759977723497,1.02839509,121880.0,121870.0,0.16784058]
[1759977723695,0.68719973,121880.0,121870.0,0.16784058]
[1759977724330,0.76719653,121880.0,121870.0,0.00373129]
[1759977724751,0.93129236,121880.0,121870.0,0.00373129]
[1759977724998,1.27248772,121880.0,121870.0,0.00373129]
[1759977725519,1.53249092,121880.0,121870.0,0.00373129]
[1759977725988,1.61561298,121880.0,121870.0,0.00373129]
[1759977726458,1.38321298,121880.0,121870.0,0.00373129]
[1759977726678,1.7509159,121880.0,121870.0,0.00373129]
[1759977726892,1.75091578,121880.0,121870.0,0.00373129]
[1759977727094,1.83091258,121880.0,121870.0,0.00373129]
[1759977727501,1.82231999,121880.0,121870.0,0.00373129]
[1759977727867,1.59950887,121880.0,121870.0,0.00373129]
[1759977728063,1.82790887,121880.0,121870.0,0.00373129]
[1759977728272,1.74791207,121880.0,121870.0,0.00373129]
[1759977728471,1.75291207,121880.0,121870.0,0.00373129]
[1759977728680,1.07052135,121880.0,121870.0,0.00373129]
[1759977728847,1.43515207,121880.0,121870.0,0.00373129]
[1759977729071,1.75291207,121880.0,121870.0,0.00373129]
[1759977729275,1.83290887,121880.0,121870.0,0.00373129]
[1759977730090,1.60050887,121880.0,121870.0,0.00373129]
[1759977730505,1.8329022,121880.0,121870.0,0.00373129]
[1759977730706,1.89343589,121880.0,121870.0,0.00373129]
[1759977731337,1.60195065,121880.0,121870.0,0.00373129]
[1759977731540,1.68731065,121880.0,121870.0,0.00373129]
[1759977731785,1.91971065,121880.0,121870.0,0.00373129]
[1759977731996,2.77521983,121880.0,121870.0,0.00373129]
[1759977732448,2.68985983,121880.0,121870.0,0.00373129]
[1759977732611,2.77521983,121880.0,121870.0,0.00373129]
[1759977733200,1.21104517,121880.0,121870.0,0.00373129]
[1759977733414,2.74894507,121880.0,121870.0,0.00373129]
[1759977734469,2.43114258,121880.0,121870.0,0.00373129]
[1759977734647,2.74894258,121880.0,121870.0,0.00373129]
[1759977735320,1.23731744,121880.0,121870.0,0.00373129]
[1759977735540,0.91951744,121880.0,121870.0,0.00373129]
[1759977735795,2.43114258,121880.0,121870.0,0.00373129]
[1759977736038,2.74898258,121880.0,121870.0,0.00373129]
[1759977736979,2.77913448,121880.0,121870.0,0.00373129]
[1759977737252,2.77913448,121880.0,121870.0,1e-08]
[1759977737253,2.59792923,121880.0,121870.0,1e-08]
[1759977737494,0.5041497,121840.0,121830.0,0.22737603]
[1759977737724,1.47550576,121840.0,121830.0,0.22737603]
[1759977737954,1.68406239,121840.0,121830.0,0.22737603]
[1759977738189,1.68406239,121840.0,121830.0,0.22942308]
[1759977738421,0.93972827,121840.0,121830.0,0.22942308]
[1759977738617,2.52807579,121840.0,121830.0,0.22942308]
[1759977738823,2.60807259,121840.0,121830.0,0.22942308]
[1759977739040,2.62318859,121840.0,121830.0,0.22942308]
[1759977739253,1.85423864,121840.0,121830.0,0.18865308]
[1759977739456,2.62318859,121840.0,121830.0,0.18865308]
[1759977740113,2.64218859,121840.0,121830.0,0.18865308]
[1759977740320,2.63233619,121840.0,121830.0,0.18865308]
[1759977741150,1.09443629,121840.0,121830.0,0.18865308]
[1759977741408,1.86338624,121840.0,121830.0,0.18865308]
[1759977741620,1.81293862,121840.0,121830.0,0.18865308]
[1759977742242,1.04398867,121840.0,121830.0,0.18865308]
[1759977742449,1.12398547,121840.0,121830.0,0.18865308]
[1759977742651,1.89293542,121840.0,121830.0,0.18865308]
[1759977742855,2.49206569,121840.0,121830.0,0.18865308]
[1759977743067,2.77781351,121840.0,121830.0,0.18865308]
[1759977743451,2.77781351,121840.0,121830.0,1e-08]
[1759977745054,2.9866535,121840.0,121830.0,1e-08]
[1759977745264,2.7534935,121840.0,121830.0,1e-08]
[1759977745481,3.4136935,121840.0,121830.0,1e-08]
[1759977746667,3.4138535,121840.0,121830.0,1e-08]
[1759977747119,2.7534935,121840.0,121830.0,1e-08]
[1759977747234,3.4138535,121840.0,121830.0,1e-08]
[1759977747453,3.41380377,121840.0,121830.0,1e-08]
[1759977748082,1.21554387,121840.0,121830.0,1e-08]
[1759977748286,3.20560378,121840.0,121830.0,1e-08]
[1759977748666,2.15014601,121840.0,121830.0,1e-08]
[1759977748874,2.32835412,121840.0,121830.0,1e-08]
[1759977749078,1.66791412,121840.0,121830.0,1e-08]
[1759977749291,1.98667412,121840.0,121830.0,1e-08]
[1759977749491,2.57764135,121840.0,121830.0,1e-08]
[1759977749698,1.3243762,121840.0,121830.0,1e-08]
[1759977749876,2.8622761,121840.0,121830.0,1e-08]
[1759977750495,2.6289161,121840.0,121830.0,1e-08]
[1759977750712,2.60264134,121840.0,121830.0,1e-08]
[1759977750943,2.83608134,121840.0,121830.0,1e-08]
[1759977751977,2.43686407,121840.0,121830.0,1e-08]
[1759977752116,2.75570407,121840.0,121830.0,1e-08]
[1759977752317,2.78092945,121840.0,121830.0,1e-08]
[1759977752556,2.78096945,121840.0,121830.0,1e-08]
[1759977752817,1.41700067,121840.0,121830.0,1e-08]
[1759977753000,1.90675732,121840.0,121830.0,1e-08]
[1759977753407,1.90679732,121840.0,121830.0,1e-08]
[1759977753633,1.33331732,121840.0,121830.0,1e-08]
[1759977753837,1.56679732,121840.0,121830.0,1e-08]
[1759977754036,1.64679412,121840.0,121830.0,1e-08]
[1759977754338,2.60264134,121840.0,121830.0,1e-08]
[1759977754676,2.83620134,121840.0,121830.0,1e-08]
[1759977755291,2.85358993,121840.0,121830.0,1e-08]
[1759977755724,2.87986469,121840.0,121830.0,1e-08]
[1759977755986,2.64630469,121840.0,121830.0,1e-08]
[1759977756190,2.87986469,121840.0,121830.0,1e-08]
[1759977756641,2.87082606,121840.0,121830.0,1e-08]
[1759977756859,2.87082606,121840.0,121800.0,0.01851137]
[1759977756860,0.50419013,121810.0,121800.0,0.01851137]
[1759977757127,1.19912893,121810.0,121800.0,0.01851137]
[1759977757375,1.82116761,121810.0,121800.0,0.01851137]
[1759977757631,1.84583483,121810.0,121800.0,0.01851137]
[1759977757871,1.35599818,121810.0,121800.0,0.01851137]
[1759977758146,1.58971818,121810.0,121800.0,0.01851137]
[1759977759122,1.85503483,121810.0,121800.0,0.01851137]
[1759977759610,1.85303483,121810.0,121800.0,0.01851137]
[1759977760334,0.72877548,121810.0,121800.0,0.01851137]
[1759977760561,0.98509213,121810.0,121800.0,0.01851137]
[1759977760777,1.47512878,121810.0,121800.0,0.01851137]
[1759977760996,1.24140878,121810.0,121800.0,0.01851137]
[1759977761427,1.50039416,121810.0,121800.0,0.01851137]
[1759977761643,1.58043096,121810.0,121800.0,0.01851137]
[1759977762522,1.26663416,121810.0,121800.0,0.02004728]
[1759977762752,0.736722,121810.0,121800.0,0.23764125]
[1759977762971,1.13467213,121810.0,121800.0,0.22122089]
[1759977763190,1.13467213,121810.0,121800.0,0.05701728]
[1759977763191,0.67140548,121810.0,121800.0,0.05701728]
[1759977763415,0.6497422,121810.0,121800.0,0.23764125]
[1759977763625,0.58773684,121810.0,121800.0,0.05701728]
[1759977763836,0.94787684,121810.0,121800.0,0.05701728]
[1759977764098,1.18167684,121810.0,121800.0,0.05701728]
[1759977764343,0.94787684,121810.0,121800.0,0.04690764]
[1759977764577,1.20419349,121810.0,121800.0,0.04690764]
[1759977764801,1.55819029,121810.0,121800.0,0.02004728]
[1759977765015,1.32443029,121810.0,121800.0,0.02004728]
[1759977765228,1.34965567,121810.0,121800.0,0.02004728]
[1759977765439,1.58341567,121810.0,121800.0,0.02004728]
[1759977766498,1.50341887,121810.0,121800.0,0.02004728]
[1759977766713,0.99078557,121810.0,121800.0,0.02004728]
[1759977766939,1.50341887,121810.0,121800.0,0.02004728]
[1759977767156,1.26965887,121810.0,121800.0,0.02004728]
[1759977767365,1.50337887,121810.0,121800.0,0.02004728]
[1759977768438,1.26965887,121810.0,121800.0,0.02004728]
[1759977768650,1.50333887,121810.0,121800.0,0.02004728]
[1759977768813,0.99070557,121810.0,121800.0,0.02004728]
[1759977769027,1.50333887,121810.0,121800.0,0.02004728]
[1759977769433,1.50329887,121810.0,121800.0,0.02004728]
[1759977770640,1.64329567,121810.0,121800.0,0.02004728]
[1759977771960,1.5682294,121810.0,121800.0,0.02004728]
[1759977772167,1.56066489,121810.0,121800.0,0.02004728]
[1759977772628,1.34977108,121810.0,121800.0,0.02004728]
[1759977772840,1.26977428,121810.0,121800.0,0.02004728]
[1759977773052,1.50337428,121810.0,121800.0,0.02004728]
[1759977773492,1.26977428,121810.0,121800.0,0.02004728]
[1759977773893,1.50333437,121810.0,121800.0,0.02004728]
[1759977776069,1.26977437,121810.0,121800.0,0.02004728]
[1759977776311,1.50329437,121810.0,121800.0,0.03017728]
[1759977776526,1.24454899,121810.0,121800.0,0.03017728]
[1759977776742,1.55806617,121810.0,121800.0,0.02004728]
[1759977776956,1.55802617,121810.0,121800.0,0.02004728]
[1759977777177,1.47802937,121810.0,121800.0,0.02004728]
[1759977777639,1.5042983,121810.0,121800.0,0.02004728]
[1759977779225,1.5042583,121810.0,121800.0,0.02004728]
[1759977779432,1.2707783,121810.0,121800.0,0.02004728]
[1759977779653,0.991625,121810.0,121800.0,0.02004728]
[1759977779861,1.5042583,121810.0,121800.0,0.02004728]
[1759977780074,1.3507751,121810.0,121800.0,0.02004728]
[1759977780279,1.5042583,121810.0,121800.0,0.02004728]
[1759977780505,1.2707783,121810.0,121800.0,0.02004728]
[1759977780708,1.48909433,121810.0,121800.0,0.02004728]
[1759977780925,1.50425971,121810.0,121800.0,0.02004728]
[1759977781135,1.27077971,121810.0,121800.0,0.02004728]
[1759977781350,1.58421667,121810.0,121800.0,0.02004728]
[1759977781574,1.35077667,121810.0,121800.0,0.02004728]
[1759977781778,1.58421667,121810.0,121800.0,0.02004728]
[1759977782269,1.84053332,121810.0,121800.0,0.02004728]
[1759977782440,1.60709332,121810.0,121800.0,0.02004728]
[1759977782655,1.84053332,121810.0,121800.0,0.02004728]
[1759977782879,1.58421667,121810.0,121800.0,0.02004728]
[1759977783323,2.37604327,121810.0,121800.0,0.02004728]
[1759977783542,2.41982053,121810.0,121800.0,0.02004728]
[1759977783759,2.65326053,121810.0,121800.0,0.02004728]
[1759977783976,2.41982053,121810.0,121800.0,0.02004728]
[1759977784303,2.65328658,121810.0,121800.0,0.02004728]
[1759977784521,2.49923848,121810.0,121800.0,1e-08]
[1759977784730,0.53043253,121800.0,121790.0,0.23215545]
[1759977784948,2.5262895,121800.0,121790.0,0.23215545]
[1759977785176,2.50882279,121800.0,121790.0,0.23215545]
[1759977785415,2.57023968,121800.0,121790.0,0.23215545]
[1759977785638,2.38436102,121800.0,121790.0,1e-08]
[1759977785844,2.66915103,121800.0,121790.0,0.00050372]
[1759977785988,2.66915103,121800.0,121790.0,1e-08]
[1759977786207,0.52921708,121790.0,121780.0,0.01901498]
[1759977786406,0.52921708,121790.0,121780.0,0.01916602]
[1759977786407,1.5300391,121790.0,121780.0,0.01916602]
[1759977786606,2.2565691,121790.0,121780.0,0.01916602]
[1759977786819,1.62056164,121790.0,121780.0,0.01916602]
[1759977787060,2.04780164,121790.0,121780.0,0.01916602]
[1759977787264,2.28128164,121790.0,121780.0,0.01916602]
[1759977787695,1.62056164,121790.0,121780.0,0.01916602]
[1759977787875,1.63656164,121790.0,121780.0,0.01916602]
[1759977788074,2.06380164,121790.0,121780.0,0.01916602]
[1759977788272,2.29728164,121790.0,121780.0,0.01916602]
[1759977788902,1.63656164,121790.0,121780.0,0.01916602]
[1759977789104,1.98748164,121790.0,121780.0,0.01916602]
[1759977789306,0.55939595,121770.0,121760.0,0.01895432]
[1759977789522,1.75870338,121770.0,121760.0,0.01895432]
[1759977789734,1.82455338,121770.0,121760.0,0.01895432]
[1759977790062,1.27176713,121770.0,121760.0,0.01895432]
[1759977790266,1.78440043,121770.0,121760.0,0.01895432]
[1759977790655,1.78740043,121770.0,121760.0,0.02100313]
[1759977790946,1.70200043,121770.0,121760.0,0.02100313]
[1759977791173,1.46784043,121770.0,121760.0,0.02100313]
[1759977791379,1.60783723,121770.0,121760.0,0.02100313]
[1759977791629,1.92783723,121770.0,121760.0,0.02100313]
[1759977791885,1.60783723,121770.0,121760.0,0.02100313]
[1759977792090,2.18595956,121770.0,121760.0,0.02100313]
[1759977792742,2.18595956,121770.0,121750.0,0.23992727]
[1759977792743,0.50425755,121760.0,121750.0,0.23992727]
[1759977792951,2.07900156,121760.0,121750.0,0.23992727]
[1759977793154,2.50644156,121760.0,121750.0,0.23992727]
[1759977793789,1.84444156,121760.0,121750.0,0.23992727]
[1759977793999,2.52348156,121760.0,121750.0,0.23992727]
[1759977794214,2.55744156,121760.0,121750.0,0.23992727]
[1759977794427,1.86913101,121760.0,121750.0,0.23992727]
[1759977794678,2.18929101,121760.0,121750.0,0.23992727]
[1759977795271,2.10385101,121760.0,121750.0,0.23992727]
[1759977795610,2.18929101,121760.0,121750.0,0.23992727]
[1759977796294,2.18929101,121760.0,121740.0,0.00414504]
[1759977796295,0.50427104,121750.0,121740.0,0.00414504]
[1759977796509,0.50427104,121750.0,121740.0,1e-08]
[1759977796510,2.01924026,121750.0,121740.0,1e-08]
[1759977796741,2.08509026,121750.0,121740.0,1e-08]
[1759977796985,1.55631681,121740.0,121730.0,0.01818182]
[1759977797194,1.90910506,121740.0,121730.0,0.01818182]
[1759977797399,1.82699954,121740.0,121730.0,0.01818182]
[1759977797604,1.84096356,121740.0,121730.0,0.01818182]
[1759977797717,1.86564607,121740.0,121730.0,0.01818182]
[1759977797917,2.10036607,121740.0,121730.0,0.01818182]
[1759977798118,0.50429803,121730.0,121720.0,0.02966064]
[1759977798351,1.95440237,121730.0,121720.0,0.02966064]
[1759977798558,2.10024917,121730.0,121720.0,0.03171045]
[1759977799166,2.1266281,121730.0,121720.0,0.03171045]
[1759977799389,2.14166708,121730.0,121720.0,0.03171045]
[1759977799931,2.14972654,121730.0,121720.0,0.03171045]
[1759977800119,1.83656654,121730.0,121720.0,0.03171045]
[1759977800320,2.13053761,121730.0,121720.0,0.03171045]
[1759977800530,2.1552218,121730.0,121720.0,0.03171045]
[1759977800740,2.1581818,121730.0,121720.0,0.03171045]
[1759977801283,1.8380218,121730.0,121720.0,0.03171045]
[1759977801491,1.31494988,121730.0,121720.0,0.03171045]
[1759977801903,1.54970988,121730.0,121720.0,0.03171045]
[1759977802129,1.03619374,121730.0,121720.0,0.03171045]
[1759977802328,1.54970988,121730.0,121720.0,0.03171045]
[1759977802763,1.03651374,121730.0,121720.0,0.03171045]
[1759977802959,1.30946668,121730.0,121720.0,0.03171045]
[1759977803159,1.64505981,121730.0,121720.0,0.03171045]
[1759977803361,1.54454668,121730.0,121720.0,0.03171045]
[1759977803566,1.11651054,121730.0,121720.0,0.03171045]
[1759977803809,1.30946668,121730.0,121720.0,0.03171045]
[1759977803985,1.55002988,121730.0,121720.0,0.03171045]
[1759977804165,1.29026569,121730.0,121720.0,0.03171045]
[1759977804374,2.03886183,121730.0,121720.0,0.03171045]
[1759977804572,2.06509076,121730.0,121720.0,0.03171045]
[1759977804947,1.55157462,121730.0,121720.0,0.03171045]
[1759977805496,1.55161462,121730.0,121720.0,0.03171045]
[1759977805914,2.03890183,121730.0,121720.0,0.03171045]
[1759977806036,1.52538569,121730.0,121720.0,0.03171045]
[1759977806244,2.03890183,121730.0,121720.0,0.03171045]
[1759977806452,2.05395059,121730.0,121720.0,0.03171045]
[1759977806646,1.54043445,121730.0,121720.0,0.03171045]
[1759977806849,1.62043125,121730.0,121720.0,0.03171045]
[1759977807249,1.54051445,121730.0,121720.0,0.03171045]
[1759977808202,1.02699831,121730.0,121720.0,0.03171045]
[1759977808353,1.54051445,121730.0,121720.0,0.03171045]
[1759977809523,2.06156465,121730.0,121720.0,0.03171045]
[1759977809785,0.73969358,121730.0,121720.0,0.03171045]
[1759977809989,2.16736266,121730.0,121720.0,0.03171045]
[1759977810823,1.65384652,121730.0,121720.0,0.03171045]
[1759977811026,2.16736266,121730.0,121720.0,0.03171045]
[1759977811601,1.65384652,121730.0,121720.0,0.03171045]
[1759977812756,1.67852789,121730.0,121720.0,0.03171045]
[1759977813182,2.19204403,121730.0,121720.0,0.03171045]
[1759977813613,1.95688403,121730.0,121720.0,0.03171045]
[1759977813818,2.19192403,121730.0,121720.0,0.03171045]
[1759977813995,1.67840789,121730.0,121720.0,0.03171045]
[1759977814302,1.25204988,121730.0,121720.0,0.03171045]
[1759977814508,1.57256988,121730.0,121720.0,0.03171045]
[1759977814711,1.25204988,121730.0,121720.0,0.03171045]
[1759977814917,1.33752988,121730.0,121720.0,0.03171045]
[1759977815138,1.54784851,121730.0,121720.0,0.03171045]
[1759977815550,1.54784851,121730.0,121720.0,0.19602198]
[1759977815551,1.06307048,121730.0,121720.0,0.19602198]
[1759977815775,1.06307048,121730.0,121720.0,0.23195198]
[1759977815776,1.02383048,121730.0,121720.0,0.23195198]
[1759977816018,0.91883048,121730.0,121720.0,0.23195198]
[1759977816381,0.68383048,121730.0,121720.0,0.23195198]
[1759977816603,0.11585488,121730.0,121720.0,0.23195198]
[1759977816823,0.25268406,121730.0,121720.0,0.25403198]
[1759977817193,0.24515,121730.0,121720.0,0.25403198]
[1759977817417,0.2527098,121730.0,121720.0,0.25403198]
[1759977817651,0.01015,121730.0,121720.0,0.25403198]
[1759977818568,0.01015,121730.0,121720.0,0.76754812]
[1759977818807,0.01015,121730.0,121720.0,0.88318002]
[1759977819046,0.00715,121730.0,121720.0,1.30630208]
[1759977819240,0.00715,121730.0,121720.0,1.54130208]
[1759977819444,0.00115,121730.0,121720.0,1.54130208]
[1759977819628,0.00415,121730.0,121720.0,1.62129888]
[1759977819861,0.00415,121730.0,121720.0,2.13481502]
[1759977820085,0.00015,121730.0,121720.0,1.86387296]
[1759977820295,0.00115,121730.0,121720.0,1.86487296]
[1759977820512,0.07375556,121770.0,121760.0,0.16425755]
[1759977820713,0.07375556,121770.0,121760.0,0.1899133]
[1759977820714,0.07390645,121770.0,121760.0,0.1899133]
[1759977820916,0.07390645,121770.0,121760.0,0.17348755]
[1759977821163,0.07390645,121770.0,121760.0,0.28118598]
[1759977821365,0.06634592,121770.0,121760.0,0.51618598]
[1759977821576,0.06634592,121770.0,121760.0,0.22226755]
[1759977821782,0.06634592,121770.0,121760.0,0.45722755]
[1759977821984,0.00015089,121770.0,121760.0,0.45722755]
[1759977822274,0.00015089,121770.0,121760.0,0.48737945]
[1759977822473,0.00015089,121770.0,121760.0,0.56737625]
[1759977822703,0.00015089,121770.0,121760.0,0.33554151]
[1759977822915,0.00315089,121770.0,121760.0,1.17711173]
[1759977823124,0.00015089,121770.0,121760.0,1.41207173]
[1759977823551,0.00115089,121770.0,121760.0,1.41207173]
[1759977823755,0.00415089,121770.0,121760.0,1.25810853]
[1759977823958,0.00415089,121770.0,121760.0,1.49310853]
[1759977824385,0.00136951,121780.0,121770.0,0.53439596]
[1759977824586,1e-08,121780.0,121770.0,1.39523824]
[1759977824823,1e-08,121780.0,121770.0,2.14973102]
[1759977825229,1e-08,121780.0,121770.0,2.14977102]
[1759977825438,1e-08,121780.0,121770.0,1.48733102]
[1759977825654,1e-08,121780.0,121770.0,2.14977102]
[1759977825858,1e-08,121780.0,121770.0,1.91473102]
[1759977826063,1e-08,121780.0,121770.0,2.25073101]
[1759977826297,1e-08,121780.0,121770.0,1.65135045]
[1759977826477,1e-08,121780.0,121770.0,1.34758022]
[1759977826735,0.06619503,121810.0,121800.0,0.19435551]
[1759977826949,0.07281453,121810.0,121800.0,0.01081]
[1759977827160,0.06619503,121810.0,121800.0,0.47424397]
[1759977827377,0.43340607,121830.0,121810.0,0.16417736]
[1759977827585,0.51652813,121830.0,121820.0,0.01081]
[1759977827800,0.7080213,121830.0,121820.0,0.01081]
[1759977828003,0.7466413,121830.0,121820.0,0.01081]
[1759977828219,1.50273152,121830.0,121820.0,0.01081]
[1759977828404,1.42902545,121830.0,121820.0,0.01081]
[1759977828646,0.47015206,121830.0,121820.0,0.21746431]
[1759977828899,0.47115206,121830.0,121820.0,0.24205739]
[1759977829109,0.47115206,121830.0,121820.0,0.24505739]
[1759977829110,0.344,121830.0,121820.0,0.24505739]
[1759977829318,0.344,121830.0,121820.0,0.26668739]
[1759977829525,0.343,121830.0,121820.0,0.26668739]
[1759977829933,0.344,121830.0,121820.0,0.26768739]
[1759977830146,0.344,121830.0,121820.0,0.46175665]
[1759977830372,0.344,121830.0,121820.0,0.44012665]
[1759977830581,0.344,121830.0,121820.0,0.20504665]
[1759977830797,0.004,121830.0,121820.0,0.49190855]
[1759977831013,0.004,121830.0,121820.0,0.57734855]
[1759977831248,0.004,121830.0,121820.0,0.65734535]
[1759977831490,0.004,121830.0,121820.0,0.42226535]
[1759977831689,0.004,121830.0,121820.0,0.57742855]
[1759977831904,0.19202894,121860.0,121830.0,0.17235173]
[1759977832118,0.19202894,121860.0,121820.0,0.48794855]
[1759977832119,1.13607035,121850.0,121840.0,0.23512]
[1759977832329,1.13607035,121850.0,121820.0,0.30157757]
[1759977832330,0.003,121830.0,121820.0,0.30157757]
[1759977832578,0.003,121830.0,121820.0,0.35226757]
[1759977832782,0.00655967,121830.0,121820.0,0.58742757]
[1759977833211,0.00355967,121830.0,121820.0,0.61274901]
[1759977833429,0.00355967,121830.0,121820.0,0.61278901]
[1759977833852,0.00255967,121830.0,121820.0,0.60978901]
[1759977834061,0.00255967,121830.0,121820.0,0.37458901]
[1759977834293,0.00255967,121830.0,121820.0,0.60978901]
[1759977834714,0.00255967,121830.0,121820.0,0.69340082]
[1759977834935,0.00255967,121830.0,121820.0,1.44949104]
[1759977835168,0.00255967,121830.0,121820.0,1.22129104]
[1759977835169,0.00655967,121830.0,121820.0,1.22129104]
[1759977835383,0.07369222,121870.0,121860.0,0.16412276]
[1759977835615,0.06619503,121870.0,121860.0,0.45786276]
[1759977835836,0.25818506,121890.0,121880.0,0.16409583]
[1759977835837,0.09338797,121890.0,121880.0,0.16409583]
[1759977836054,0.20384003,121890.0,121880.0,0.02721958]
[1759977836254,1.46401353,121890.0,121880.0,0.01081]
[1759977836500,0.40654331,121890.0,121870.0,0.39934929]
[1759977836719,0.21860622,121890.0,121880.0,0.03735975]
[1759977836938,0.55860622,121890.0,121880.0,0.03735975]
[1759977837146,0.39452386,121890.0,121880.0,0.20145558]
[1759977837577,0.55860622,121890.0,121880.0,0.27259975]
[1759977837789,0.55860622,121890.0,121880.0,0.01129975]
[1759977838010,1.4364385,121890.0,121880.0,0.00048975]
[1759977838455,1.4424385,121890.0,121880.0,0.00248975]
[1759977838675,1.4434385,121890.0,121880.0,0.00248975]
[1759977838891,1.4374385,121890.0,121880.0,0.00048975]
[1759977839124,1.4364385,121890.0,121880.0,0.00048975]
[1759977839537,1.4384385,121890.0,121880.0,0.00148975]
[1759977839746,1.4424385,121890.0,121880.0,0.00348975]
[1759977839957,0.68234828,121890.0,121880.0,0.00148975]
[1759977840394,1.5184353,121890.0,121880.0,0.00148975]
[1759977840600,1.5184283,121890.0,121880.0,0.00148975]
[1759977841036,1.4384315,121890.0,121880.0,0.00148975]
[1759977841250,1.6735515,121890.0,121880.0,0.00148975]
[1759977841451,1.69903576,121890.0,121880.0,0.00148975]
[1759977841690,1.64096474,121890.0,121880.0,0.00348975]
[1759977842123,1.87915422,121890.0,121880.0,0.00348975]
[1759977842334,1.93366676,121890.0,121880.0,0.00348975]
[1759977842979,1.72403102,121890.0,121880.0,0.00348975]
[1759977843190,1.98531768,121890.0,121880.0,0.00348975]
[1759977843408,0.94245654,121890.0,121880.0,0.00348975]
[1759977843614,1.93362676,121890.0,121880.0,0.00348975]
[1759977844940,1.94863713,121890.0,121880.0,0.00348975]
[1759977845157,1.97412139,121890.0,121880.0,0.00348975]
[1759977845586,1.97408139,121890.0,121880.0,0.00348975]
[1759977846460,1.86856033,121890.0,121880.0,0.00348975]
[1759977846663,1.11247011,121890.0,121880.0,0.00348975]
[1759977846877,1.86856033,121890.0,121880.0,0.00348975]
[1759977847090,1.54816033,121890.0,121880.0,0.00348975]
[1759977847319,1.63356033,121890.0,121880.0,0.00348975]
[1759977847526,1.48890098,121890.0,121880.0,0.00348975]
[1759977847740,1.48141412,121890.0,121880.0,0.00348975]
[1759977847948,1.82894429,121890.0,121880.0,0.00348975]
[1759977848223,1.92399991,121890.0,121880.0,0.00348975]
[1759977848888,1.92399991,121890.0,121830.0,0.1775823]
[1759977848889,0.92023914,121850.0,121830.0,0.1775823]
[1759977849104,0.02680017,121850.0,121840.0,0.1641497]
[1759977849314,0.02680017,121850.0,121840.0,0.22655467]
[1759977849315,0.00753017,121850.0,121840.0,0.22655467]
[1759977849525,0.00753017,121850.0,121840.0,0.2101397]
[1759977849734,0.00855367,121850.0,121840.0,0.2101397]
[1759977850150,0.1988699,121850.0,121840.0,0.02516]
[1759977850356,0.2579999,121850.0,121830.0,0.40970822]
[1759977850557,0.05298017,121850.0,121840.0,0.1641497]
[1759977850971,0.05298017,121850.0,121840.0,0.1893097]
[1759977851177,0.2201164,121850.0,121840.0,0.1893097]
[1759977851384,0.2599764,121850.0,121830.0,0.40970499]
[1759977851584,0.2801164,121850.0,121840.0,0.1893097]
[1759977851814,0.2841164,121850.0,121840.0,0.1973097]
[1759977852276,0.11898017,121850.0,121840.0,0.1953097]
[1759977852488,0.2376664,121850.0,121840.0,0.1953097]
[1759977852705,0.07453017,121850.0,121840.0,0.1953097]
[1759977852921,0.07453017,121850.0,121840.0,1.11040409]
[1759977852922,0.01453017,121850.0,121840.0,1.11040409]
[1759977853131,0.01455959,121850.0,121840.0,1.11040409]
[1759977853347,0.01355959,121850.0,121840.0,1.11040409]
[1759977853553,0.01355959,121850.0,121840.0,0.2462916]
[1759977853706,0.01355959,121850.0,121840.0,0.4812916]
[1759977854339,0.00755959,121850.0,121840.0,0.4752916]
[1759977854537,0.00755959,121850.0,121840.0,0.2402916]
[1759977854788,0.00755959,121850.0,121840.0,0.4852916]
[1759977854789,0.01055959,121850.0,121840.0,0.4852916]